[Event "Mongolian Championship Women 2022"]
[Site "Chingis Khentii"]
[Date "2022.05.15"]
[Round "1.1"]
[White "Tsetsenbileg, Munkhbayar"]
[Black "Anu, Bayar"]
[Result "1-0"]
[ECO "E92"]
[WhiteElo "1830"]
[BlackElo "2102"]
[Annotator "TA"]
[PlyCount "84"]
[EventDate "2022.05.12"]
[EventType "tourn"]
[EventCountry "MGL"]
[SourceTitle "playchess.com"]
[Source "ChessBase"]
[SourceQuality "1"]
[TimeControl "40/5400+30:1800+30"]

{[%evp 25,84,-9,16,0,0,-24,-12,-23,0,-33,-11,-23,27,27,32,6,10,2,23,28,46,45,85,81,96,55,91,94,155,155,162,174,256,260,285,278,352,342,359,349,392,392,423,368,360,315,371,360,358,340,402,380,614,607,628,627,625,614,672,664,583]} 1. d4 {[%emt 0:00:02]} Nf6 {[%emt 0:00:03]} 2. c4 {[%emt 0:00:08]} g6 {[%emt 0:00:06]} 3. Nc3 {[%emt 0:00:12]} Bg7 {[%emt 0:00:12]} 4. e4 {[%emt 0:00:07]} d6 {[%emt 0:00:12]} 5. Nf3 {[%emt 0:00:23]} O-O {[%emt 0:00:39]} 6. Be2 {[%emt 0:00:06]} e5 7. dxe5 dxe5 8. Qxd8 Rxd8 9. Bg5 Re8 10. Nd5 Nxd5 11. cxd5 c6 12. Bc4 cxd5 13. Bxd5 Nc6 14. a3 {Inhibits Nb4. E92: King's Indian: Classical: 6 Be2 e5: 7 dxe5, 7 Be3 and Petrosian System without 7...Nbd7.} Be6 15. Bxc6 bxc6 16. Rc1 {[#] The position is equal.} Rab8 $146 ({Predecessor:} 16... Reb8 17. Rxc6 Rxb2 18. Bc1 Ra2 19. O-O Rc8 20. Rxc8+ Bxc8 21. h3 Bb7 22. Be3 Bxe4 23. Bxa7 Rxa3 {0-1 (40) Waqar,A (2062)-Vedmediuc,S (2468) Istanbul 2012}) 17. Rc2 c5 18. Be3 c4 (18... Bf8 $142) 19. Bxa7 $11 Rb7 20. Be3 {[%cal Ba7e3,Be3c1,Bc1d2,Bd2b4,Bb4c3][%mdl 32]} Reb8 21. Bc1 h6 22. O-O Rd8 23. Bd2 Bg4 24. Bb4 {White now steadily converts the win.} Be6 25. Nd2 {[%cal Bf3d2,Bd2c4,Bc4a5][%mdl 32]} Rd4 26. Rfc1 Bf8 (26... Bf6 $142) 27. Bc3 $16 ({Resist} 27. Nxc4 $6 Bxb4 28. axb4 Rxb4 29. Nxe5 Rxe4 $14) 27... Rd3 28. Bxe5 Bc5 (28... Rbd7 {might work better.}) 29. Nxc4 $18 Rbd7 {[#] ( -> ...Rd1+)} 30. Kf1 Bd4 31. Bxd4 R7xd4 32. f3 Rb3 33. Na5 Rbd3 34. Rc3 Rd2 35. Nb3 Bxb3 36. Rxb3 {[%mdl 4096] Endgame KRR-KRR} Kg7 37. Rb7 R4d3 38. Rcc7 Kf6 {[#]} (38... g5 39. h4 gxh4 40. Rxf7+ Kg6 41. Rg7+ Kf6) 39. Rxf7+ {White is clearly winning.} Ke6 40. Rbe7+ Kd6 41. Rd7+ Ke5 42. Rxd3 Rxd3 {[%emt 0:56:25] Weighted Error Value: White=0.11 (very precise) /Black=0.37} 1-0

[Event "Mongolian Championship Women 2022"]
[Site "Chingis Khentii"]
[Date "2022.05.15"]
[Round "1.2"]
[White "Nomindalai Tumurbaatar"]
[Black "Bayarmaa, Bayarjargal"]
[Result "0-1"]
[ECO "B07"]
[WhiteElo "2111"]
[BlackElo "2124"]
[Annotator "TA"]
[PlyCount "94"]
[EventDate "2022.05.12"]
[EventType "tourn"]
[EventCountry "MGL"]
[SourceTitle "playchess.com"]
[Source "ChessBase"]
[SourceQuality "1"]
[TimeControl "40/5400+30:1800+30"]

{[%evp 9,93,28,44,46,62,35,75,61,75,41,72,49,57,39,28,32,37,29,29,24,41,0,0,0,0,0,0,-4,0,0,0,-14,-19,-39,-30,-27,-47,-66,-67,-78,-83,-125,-111,-129,-113,-183,-183,-184,-163,-283,-159,-325,-223,-222,-59,-422,-422,-422,-422,-422,-414,-434,-418,-406,-335,-406,-408,-414,-412,-395,-406,-406,-396,-392,-387,-449,-445,-1016,-1012,-987,-982,-935,-713,-5047,-1177,-29999]} 1. d4 {[%emt 0:00:09]} Nf6 {[%emt 0:00:07]} 2. g3 {[%emt 0:00:49]} g6 {[%emt 0:00:10]} 3. Bg2 {[%emt 0:00:11]} Bg7 {[%emt 0:00:07]} 4. e4 {[%emt 0:01:19]} d6 {[%emt 0:00:43]} 5. Nc3 {[%emt 0:00:25]} Na6 {[%emt 0:03:00]} 6. Nf3 {[%emt 0:07:18][%cal Bg1f3,Bf3d2,Bd2c4,Bc4b6,Bb6d7][%mdl 32] B07: Pirc Defence: Miscellaneous Systems.} c5 {[%emt 0:01:47]} 7. d5 {[%emt 0:00:26] [#]} Bg4 $146 ({Predecessor:} 7... O-O 8. O-O Nc7 9. a4 b6 10. Re1 Bb7 11. Bf4 a6 12. Qd3 Nh5 13. Bd2 e5 14. Rab1 a5 15. Qe2 Bf6 16. Bh6 {1-0 (30) Davies,N (2515)-Cicak,S (2480) Reykjavik 1998}) 8. a4 {White is better.} Nc7 9. O-O a6 10. Qd3 (10. h3 $5 {[%cal Rh3g4]} Bxf3 11. Qxf3 $14 (11. Bxf3 O-O $14)) 10... O-O {[%cal Ob7b5]} 11. Nd2 (11. h3 $5 {[%cal Rh3g4]} Bxf3 12. Bxf3 $14 (12. Qxf3 b5 $11)) 11... Bd7 12. Nc4 b5 13. Nb6 Rb8 14. Nxd7 Nxd7 15. axb5 axb5 16. f4 b4 17. Nd1 {[%cal Bc3d1,Bd1e3,Be3c4][%mdl 32]} Nb5 18. Ne3 Nd4 19. Nc4 Qc7 20. Bd2 Nb6 21. Ra6 Nxc4 22. Qxc4 Qb7 {[%cal Od4c2]} 23. Rfa1 Qb5 24. Qxb5 Rxb5 25. Ra7 Nxc2 26. Rb1 Re8 {Black is more active.} 27. Bh3 (27. Bf1 $17 {keeps fighting.} Rbb8 28. Kh1) 27... Rbb8 $19 28. Bd7 Ra8 29. Rc7 (29. Ra4 {is a better defense.} Red8 30. Kf1) 29... Reb8 (29... Bd4+ $19 30. Kh1 Reb8) 30. Bc6 $2 (30. e5 $17) 30... Ra1 31. Rxa1 Nxa1 ({Black should try} 31... Bd4+ $19 32. Kg2 Nxa1 33. Rxe7 Nb3) 32. Rxe7 $2 {[%mdl 8192]} (32. e5 $1 $15) 32... Bxb2 ({Worse is} 32... Nb3 33. Be3 Kf8 34. Rc7 (34. Rd7 $2 Bxb2 35. Ba4 Nd4 $17) 34... Bxb2 35. e5 $15) 33. e5 Bd4+ 34. Kg2 b3 35. Bc1 c4 ({Wrong is} 35... b2 $2 36. Bxb2 Rxb2+ 37. Kh3 $19) 36. exd6 Bc5 {[#] ...c3 is the strong threat.} ({Avoid the trap} 36... b2 $2 37. Bxb2 Rxb2+ 38. Kh3 $19) 37. Bb2 Nc2 38. Re4 {Black must now prevent d7.} Bxd6 {Threatens to win with ...Ba3.} 39. Kf3 c3 40. Bxc3 b2 41. Bxb2 Rxb2 42. Re8+ Kg7 43. Rd8 (43. Bd7 $142) 43... Ne1+ 44. Ke4 Bc5 {[%cal Rb2e2] [#]} 45. d6 Rd2 46. f5 Rd4+ (46... Kf6 $142 47. fxg6 Bg1) 47. Ke5 Nd3# {[%emt 1:02:50] Weighted Error Value: White=0.78/Black=0.33} 0-1

[Event "Mongolian Championship Women 2022"]
[Site "Chingis Khentii"]
[Date "2022.05.15"]
[Round "1.3"]
[White "Munguntuul, Batkhuyag"]
[Black "Altantuya, Boldbaatar"]
[Result "1-0"]
[WhiteElo "2443"]
[BlackElo "2263"]
[Annotator "TA"]
[PlyCount "39"]
[EventDate "2022.05.12"]
[EventType "tourn"]
[EventCountry "MGL"]
[SourceTitle "playchess.com"]
[Source "ChessBase"]
[SourceQuality "1"]
[TimeControl "40/5400+30:1800+30"]

{[%evp 18,19,39,41]} 1. e4 {[%emt 0:00:01]} e6 {[%emt 0:00:07]} 2. d4 {[%emt 0:00:03]} d5 {[%emt 0:00:07]} 3. Nc3 {[%emt 0:00:06]} Be7 {[%emt 0:00:07]} 4. Nf3 {[%emt 0:00:09]} Nf6 {[%emt 0:00:31]} 5. Bd3 {[%emt 0:00:06]} dxe4 6. Nxe4 {[%emt 0:00:14]} Nbd7 {[%emt 0:01:11]} 7. O-O {[%emt 0:05:49]} c5 {[%emt 0:01:44]} 8. c3 {[%emt 0:06:03]} O-O {[%emt 0:00:54]} 9. Qe2 {[%emt 0:03:36]} cxd4 10. Nxd4 {[%emt 0:03:54] [#]} {Predecessor:} Nxe4 $146 {C10: French with 3 Nc3: Unusual Black 3rd moves and 3...dxe4.} 11. Bxe4 Qc7 12. a4 a6 13. a5 Nf6 14. Bf3 Bd7 15. g3 e5 16. Rd1 Rfe8 17. Nc2 e4 18. Bg2 Bg4 19. Qe1 Bxd1 20. Qxd1 {1-0 (39) Leko,P (2693)-Huzman,A (2557) Tallinn 2016} 1-0

[Event "Mongolian Championship Women 2022"]
[Site "Chingis Khentii"]
[Date "2022.05.15"]
[Round "1.4"]
[White "Munkhzul, Turmunkh"]
[Black "Munkhzul, Davaakhuu"]
[Result "1/2-1/2"]
[ECO "C95"]
[WhiteElo "2294"]
[BlackElo "1991"]
[Annotator "TA"]
[PlyCount "157"]
[EventDate "2022.05.12"]
[EventType "tourn"]
[EventCountry "MGL"]
[SourceTitle "playchess.com"]
[Source "ChessBase"]
[SourceQuality "1"]
[TimeControl "40/5400+30:1800+30"]

{[%evp 30,157,18,6,23,22,19,18,31,31,50,23,24,23,15,0,22,7,49,29,20,39,36,30,65,0,0,-10,-11,-43,3,-42,-38,-50,-30,-35,0,0,416,412,359,100,129,122,234,79,97,81,80,88,73,73,87,73,92,73,73,30,56,48,77,30,33,0,29,29,23,0,256,257,268,258,236,162,170,170,161,155,137,163,164,138,189,174,216,235,279,264,238,247,267,117,373,243,249,0,62,0,0,-212,-212,-212,-206,-212,-206,-206,-206,-197,0,0,0,0,0,0,0,0,0,0,0,0,0,0,0,0,0,0,0,0,0,0]} 1. e4 {[%emt 0:00:04]} e5 {[%emt 0:00:05]} 2. Nf3 {[%emt 0:00:16]} Nc6 {[%emt 0:00:11]} 3. Bb5 {[%emt 0:00:32]} a6 {[%emt 0:00:16]} 4. Ba4 {[%emt 0:00:58]} Nf6 5. O-O {[%emt 0:00:58]} Be7 {[%emt 0:00:28]} 6. Re1 {[%emt 0:00:56]} b5 {[%emt 0:00:07]} 7. Bb3 {[%emt 0:00:05]} d6 {[%emt 0:00:11]} 8. c3 {[%emt 0:01:03]} O-O {[%emt 0:00:18]} 9. h3 {[%emt 0:00:29]} Nb8 {[%emt 0:00:14]} 10. d4 Nbd7 11. Nbd2 {[%emt 0:01:27]} Bb7 12. Bc2 Re8 13. Nf1 {[%emt 0:01:41]} Bf8 {[%emt 0:01:30]} 14. Ng3 {[%emt 0:00:16]} g6 {[%emt 0:00:14]} 15. b3 Bg7 {[%emt 0:06:40] 15...Bg7 was played by the boomers.} 16. d5 {[%emt 0:01:56]} Qb8 {[%emt 0:03:23] C95: Closed Ruy Lopez: Breyer Variation with 10 d4.} 17. Be3 {[%emt 0:07:14]} c6 {[%emt 0:03:55][%cal Rc6d5]} 18. c4 {[%emt 0:01:58]} Qc7 {[%emt 0:04:43]} 19. Rc1 {[%emt 0:05:58] [#]} Reb8 $146 {[%emt 0:17:21]} ({Predecessor:} 19... bxc4 20. bxc4 Nc5 21. Nd2 a5 22. Ne2 Ba6 23. Bxc5 dxc5 24. Ba4 Bb7 25. Rb1 Rec8 {0-1 (49) Smirnov,P (2539)-Socko,B (2562) Kallithea 2002}) 20. Bd3 {[%emt 0:15:24]} b4 {[%emt 0:11:27]} 21. Qd2 {[%emt 0:10:00]} a5 {[%emt 0:09:17]} 22. Bh6 {[%emt 0:08:58]} Nc5 {[%emt 0:08:08]} 23. Bc2 {[%emt 0:02:39][%cal Og3f5]} Bc8 {[%emt 0:03:57] Inhibits Nf5.} 24. Nh4 {[%emt 0:07:22]} Ne8 {[%emt 0:09:08]} 25. Bxg7 {[%emt 0:09:18]} Kxg7 {[%emt 0:00:09]} 26. f4 {[%emt 0:04:47]} a4 {[%emt 0:03:50]} 27. f5 {[%emt 0:05:21] White is more active.} ({Better is} 27. fxe5 $14 dxe5 28. Qg5) 27... Qe7 $11 {[%emt 0:03:58]} 28. Nf3 {[%emt 0:03:14]} axb3 {[%emt 0:00:51]} 29. Bxb3 {[%emt 0:03:04]} (29. axb3 $5 {[%cal Rd5c6]} Ra2 30. Qe3 $11 (30. dxc6 $2 Nxb3 31. Qe3 Nxc1 $19)) 29... Ra3 {[%emt 0:02:59]} (29... Bd7 $15) 30. Rb1 {[%emt 0:00:24]} (30. dxc6 Rxb3 31. axb3 Nxb3 $15) 30... cxd5 {[%emt 0:03:56]} 31. cxd5 {[%emt 0:00:49]} Ba6 {[%emt 0:04:01]} 32. Re3 {[%emt 0:01:22]} Qa7 {[%emt 0:01:33] aiming for ...Bd3.} 33. Kh2 {[%emt 0:00:34]} Na4 $2 {[%emt 0:00:59][%mdl 8192]} (33... Qe7 $11) 34. fxg6 $18 {[%emt 0:02:03]} hxg6 {[%emt 0:00:14]} 35. Ng5 $2 {[%emt 0:00:30]} (35. Nh4 $18 {is the precise move to win.}) 35... Nc3 {[%emt 0:01:38]} 36. Rb2 {[%emt 0:00:16] Strongly threatening Rf3.} Nd1 {[%emt 0:02:00] [#]} 37. Rf3 $2 {[%emt 0:01:33]} (37. Nh5+ $1 $18 {[%mdl 512] and the rest is easy.} Kg8 38. Rf3 Nxb2 39. Ne6) 37... Nxb2 $16 {[%emt 0:00:02]} 38. Rxf7+ {[%emt 0:02:13]} Qxf7 {[%emt 0:00:02]} 39. Nxf7 {[%emt 0:00:07]} Kxf7 {[%emt 0:00:06]} 40. Qxb2 {[%emt 0:00:00]} Nf6 {[%emt 0:00:00]} 41. Qf2 {[%emt 0:06:39]} Bd3 {[%emt 0:02:18]} 42. Qe1 {[%emt 0:02:00]} (42. Qf3 Bb5 $11) 42... Raa8 {[%emt 0:15:26]} 43. Qe3 {[%emt 0:03:15]} (43. h4 $5 {[%cal Rh4h5]}) 43... Bb5 {[%emt 0:01:04]} 44. Qd2 {[%emt 0:01:20]} Bd7 {[%emt 0:01:44]} 45. Qf2 {[%emt 0:00:58]} (45. Qe1 $16) 45... Kg7 $11 {[%emt 0:01:31]} 46. Qd2 {[%emt 0:00:15]} Ra7 {[%emt 0:01:42]} 47. Qe3 {[%emt 0:07:01]} Rc7 {[%emt 0:01:31]} 48. Ne2 {[%emt 0:00:25]} Rh8 $2 {[%emt 0:01:19][%mdl 8192]} (48... Rc5 $11) 49. Qb6 $1 $18 {[%emt 0:01:18][%csl LRb4,LRc7,LRd6]} Ne8 {[%emt 0:04:30]} 50. Qxb4 {[%emt 0:01:51]} g5 {[%emt 0:00:42][%cal Bg6g5,Bg5g4,Bg4g3][%mdl 32]} 51. a4 {[%emt 0:05:20] And now Ng3 would win.} g4 {[%emt 0:01:40][%cal Rg4h3]} 52. h4 {[%emt 0:00:10]} Rxh4+ {[%emt 0:00:47]} 53. Kg1 {[%emt 0:00:04] Black must now prevent a5.} g3 {[%emt 0:03:30]} 54. a5 {[%emt 0:02:03]} ({Much worse is} 54. Nxg3 $6 Rc1+ 55. Kf2 Rf4+ 56. Ke3 Rg4 $11) 54... Bc8 {[%emt 0:00:35]} 55. Bd1 {[%emt 0:04:09]} Rg4 {[%emt 0:00:34]} (55... Bg4 $16 56. Qd2 (56. Nxg3 Rc1 $11) 56... Bxe2 57. Bxe2 Kf8) 56. Qb5 {[%emt 0:01:24]} Bd7 {[%emt 0:00:48]} 57. Qd3 {[%emt 0:00:05]} Rg6 {[%emt 0:00:38]} 58. Nxg3 {[%emt 0:01:11]} Rc1 {[%emt 0:00:07]} 59. Kf2 {[%emt 0:00:35]} Ra1 {[%emt 0:00:34]} 60. a6 {[%emt 0:01:46]} (60. Bh5 $18 {and White stays clearly on top.}) 60... Nc7 $2 {[%emt 0:00:03][%mdl 8192]} (60... Nf6 $16) 61. Be2 {[%emt 0:01:32] Really sharp!} Nxa6 {[%emt 0:00:16]} 62. Nh5+ $2 {[%emt 0:00:17]} (62. Nf5+ $1 $18 Bxf5 63. exf5) 62... Kf7 {[%emt 0:01:00]} ({Black should try} 62... Kg8 $11) 63. Qc3 {[%emt 0:01:40]} (63. Qf3+ $14 Ke7 64. Ng3) 63... Ra2 $11 {[%emt 0:00:05]} 64. Qb3 $2 {[%emt 0:00:34] [#] Against Bb5} (64. Ng3 $11 {and White has nothing to worry.}) 64... Rxe2+ $1 $19 {[%emt 0:00:35][%mdl 512]} 65. Kxe2 {[%emt 0:00:04] Ng3 is the strong threat.} Bg4+ {[%emt 0:00:04]} 66. Ke1 {[%emt 0:00:54] Threatens to win with Qb7+.} Nc5 {[%emt 0:00:06] Prevents Qb7+.} 67. Qb8 {[%emt 0:00:26] Hoping for Qh8.} Bxh5 {[%emt 0:00:05]} 68. Qc7+ {[%emt 0:00:15] [#]} Kg8 $2 {[%emt 0:00:17]} ({Black should play} 68... Ke8 $1 $19 69. Qh7 Nd3+ 70. Kd2 Nf4 71. Qh8+ Kf7) 69. Qd8+ $11 {[%emt 0:00:21] The position is equal.} Kh7 {[%emt 0:00:41]} 70. Qe7+ {[%emt 0:00:04]} Kh6 {[%emt 0:02:05]} 71. Qf8+ {[%emt 0:00:06]} ({Don't blunder} 71. g4 $2 Bxg4 72. Qh4+ Bh5 $19) 71... Kg5 {[%emt 0:00:16]} 72. Qf5+ {[%emt 0:00:08]} Kh6 {[%emt 0:00:06]} 73. Qf8+ {[%emt 0:00:06]} Kh7 {[%emt 0:00:12]} (73... Kg5 $5 74. Qf5+ Kh6 $11) 74. Qf7+ {[%emt 0:00:15]} Kh6 {[%emt 0:00:31]} 75. Qf8+ {[%emt 0:00:05]} Kh7 {[%emt 0:00:14]} (75... Kg5 $5 76. Qf5+ Kh6 $11) 76. Qf7+ {[%emt 0:00:06]} Kh6 {[%emt 0:00:03]} 77. Qf8+ {[%emt 0:00:03]} Kh7 {[%emt 0:00:07]} (77... Kg5 $5 78. Qf5+ Kh6 $11) 78. Qf7+ {[%emt 0:00:03]} Kh6 {[%emt 0:00:11]} 79. Qf8+ {[%emt 0:00:04] Weighted Error Value: White=0.27 (precise) /Black=0.50} 1/2-1/2

[Event "Mongolian Championship Women 2022"]
[Site "Chingis Khentii"]
[Date "2022.05.15"]
[Round "1.5"]
[White "Amin-Erdene, Bayanmunkh"]
[Black "Mungunzul, Bat-Erdene"]
[Result "0-1"]
[ECO "D00"]
[WhiteElo "1425"]
[BlackElo "2091"]
[Annotator "TA"]
[PlyCount "33"]
[EventDate "2022.05.12"]
[EventType "tourn"]
[EventCountry "MGL"]
[SourceTitle "playchess.com"]
[Source "ChessBase"]
[SourceQuality "1"]
[TimeControl "40/5400+30:1800+30"]

{[%evp 9,20,0,0,3,0,7,12,10,35,12,58,54,87]} 1. d4 {[%emt 0:00:06][%cal Bd2d4,Bd4c5][%mdl 32]} d5 {[%emt 0:00:18]} 2. Bf4 {[%emt 0:00:06]} Nf6 {[%emt 0:00:14]} 3. e3 {[%emt 0:00:04]} c5 4. dxc5 {[%emt 0:00:06]} Nc6 {[%emt 0:00:54]} 5. Bb5 {[%emt 0:00:10]} Qa5+ {[%emt 0:00:54]} 6. Nc3 {[%emt 0:00:08] D00: 1 d4 d5: Unusual lines.} a6 {[%emt 0:00:26]} 7. Bxc6+ {[%emt 0:00:08]} bxc6 {[%emt 0:00:02]} 8. Nf3 {[%emt 0:01:05] Black should prevent Qd4.} Qxc5 {[%emt 0:08:18]} 9. Ne5 {[%emt 0:06:42]} e6 {[%emt 0:10:08]} (9... Nd7 $11) 10. O-O $1 $14 {[%emt 0:02:30]} Bb7 {[%emt 0:04:46][%mdl 32768] [#] Black did not feel at home in the position after the opening.  Weighted Error Value: White=0.06 (flawless) /Black=0.17 (very precise) . Loss on time!?} {Predecessor:} 11. Na4 $146 Qa5 12. c4 Be7 13. b4 Qd8 14. c5 O-O 15. Nb6 Ra7 16. Qa4 Qe8 17. Rac1 {1-0 (40) Sidhant,M (2382)-Chitlange,S (2057) Chennai 2018} 0-1

[Event "Mongolian Championship Women 2022"]
[Site "Chingis Khentii"]
[Date "2022.05.15"]
[Round "1.6"]
[White "Khulan, Enkhsaikhan"]
[Black "Enkhtuul, Altan-Ulzii"]
[Result "0-1"]
[ECO "E71"]
[WhiteElo "2111"]
[BlackElo "2228"]
[Annotator "TA"]
[PlyCount "27"]
[EventDate "2022.05.12"]
[EventType "tourn"]
[EventCountry "MGL"]
[SourceTitle "playchess.com"]
[Source "ChessBase"]
[SourceQuality "1"]
[TimeControl "40/5400+30:1800+30"]

{[%evp 13,27,45,73,25,59,24,77,69,79,75,87,60,59,53,61,59]} 1. d4 {[%emt 0:00:13]} c5 {[%emt 0:00:44]} 2. d5 {[%emt 0:00:22]} d6 {[%emt 0:00:06]} 3. c4 {[%emt 0:00:14]} Nf6 {[%emt 0:00:34]} 4. Nc3 {[%emt 0:00:09]} g6 {[%emt 0:00:07]} 5. e4 {[%emt 0:00:23]} Bg7 {[%emt 0:00:05]} 6. h3 {[%emt 0:00:56]} O-O {[%emt 0:00:28]} 7. Bd3 {[%emt 0:00:38]} Na6 {[%emt 0:00:39]} 8. Be3 {[%emt 0:01:57] E71: King's Indian: 4 e4 d6 5 h3.} (8. Nf3 $16) 8... Nc7 {[%emt 0:02:43][%cal Ob7b5]} 9. Nf3 {[%emt 0:03:02]} Nd7 {[%emt 0:01:26]} (9... e6 $11) 10. Qd2 {[%emt 0:00:54] White is better.} Re8 {[%emt 0:04:38]} 11. O-O {[%emt 0:02:04]} a6 {[%emt 0:06:41] [#]} 12. Rab1 $146 {[%emt 0:03:04]} ({Predecessor:} 12. a4 Rb8 13. Bg5 Nf8 14. Rfe1 b6 15. Bh4 f6 16. Nh2 e5 17. dxe6 Nfxe6 18. Nf3 Bb7 19. Rad1 Qd7 20. Bc2 Rbd8 21. Nd5 Nxd5 22. exd5 Nf8 23. b4 Qc7 {½-½ (23) Schreiner,P (2480)-Orlov,A (2497) Germany 2019}) 12... b5 {[%emt 0:00:46]} 13. b3 {[%emt 0:02:20]} b4 {[%emt 0:01:25]} 14. Na4 {[%emt 0:01:25][%mdl 32768] Weighted Error Value: White=0.21 (precise) /Black=0.20 (precise) . Loss on time!?} 0-1